fUST/lending_fUST_20250709
["ID","MTS","AMOUNT","RATE_DAILY","PERIOD"]
[370407491,1752003049039,-460.0,0.00019726,2]
[370407492,1752003049051,-460.0,0.00019726,2]
[370407493,1752003049068,-460.0,0.00019726,2]
[370407494,1752003049079,-460.0,0.00019726,2]
[370407495,1752003049090,-460.0,0.00019726,2]
[370407496,1752003049102,-460.0,0.00019726,2]
[370407497,1752003049115,-460.0,0.00019726,2]
[370407498,1752003049127,-460.0,0.00019726,2]
[370407499,1752003049139,-861.58,0.00019726,2]
[370407500,1752003049152,-460.0,0.00019726,2]
[370407501,1752003049164,-460.0,0.00019726,2]
[370407502,1752003049176,-460.0,0.00019726,2]
[370407503,1752003049190,-460.0,0.00019726,2]
[370407504,1752003049202,-460.0,0.00019726,2]
[370407505,1752003049214,-895.77629269,0.00019866,2]
[370407506,1752003049226,-151.0,0.000199,2]
[370407507,1752003049238,-820787.03276,0.00019999,2]
[370407508,1752003049250,-574.31,0.0002,2]
[370407509,1752003049262,-460.0,0.0002,2]
[370407510,1752003049273,-460.0,0.0002,2]
[370407511,1752003049286,-460.0,0.0002,2]
[370407512,1752003049297,-460.0,0.0002,2]
[370407513,1752003049310,-460.0,0.0002,2]
[370407514,1752003049322,-460.0,0.0002,2]
[370407515,1752003049335,-590.88,0.0002,2]
[370407516,1752003049347,-460.0,0.0002,2]
[370407517,1752003049359,-460.0,0.0002,2]
[370407518,1752003049371,-460.0,0.0002,2]
[370407519,1752003049383,-460.0,0.0002,2]
[370407520,1752003049395,-460.0,0.0002,2]
[370407521,1752003049408,-460.0,0.0002,2]
[370407522,1752003049420,-460.0,0.0002,2]
[370407523,1752003049433,-460.0,0.0002,2]
[370407524,1752003049445,-460.0,0.0002,2]
[370407525,1752003049457,-460.0,0.0002,2]
[370407526,1752003049469,-460.0,0.0002,2]
[370407527,1752003049481,-460.0,0.0002,2]
[370407528,1752003049494,-460.0,0.0002,2]
[370407529,1752003049506,-460.0,0.0002,2]
[370407530,1752003049519,-460.0,0.0002,2]
[370407531,1752003049531,-460.0,0.0002,2]
[370407532,1752003049544,-173.27374186,0.0002,2]
[370407533,1752003049555,-460.0,0.0002,2]
[370407534,1752003049567,-460.0,0.0002,2]
[370407535,1752003049579,-460.0,0.0002,2]
[370407536,1752003049591,-460.0,0.0002,2]
[370407537,1752003049603,-460.0,0.0002,2]
[370407538,1752003049614,-460.0,0.0002,2]
[370407539,1752003049627,-460.0,0.0002,2]
[370407540,1752003049638,-460.0,0.0002,2]
[370407541,1752003049650,-460.0,0.0002,2]
[370407542,1752003049662,-949.86,0.0002,2]
[370407543,1752003049674,-460.0,0.0002,2]
[370407544,1752003049686,-460.0,0.0002,2]
[370407545,1752003049698,-460.0,0.0002,2]
[370407546,1752003049708,-460.0,0.0002,2]
[370407547,1752003049717,-169.98,0.0002,2]
[370407548,1752003049727,-460.0,0.0002,2]
[370407549,1752003049736,-1449.06,0.0002,2]
[370407550,1752003049746,-460.0,0.0002,2]
[370407551,1752003049755,-460.0,0.0002,2]
[370407552,1752003049764,-460.0,0.0002,2]
[370407553,1752003049773,-460.0,0.0002,2]
[370407554,1752003049783,-460.0,0.0002,2]
[370407555,1752003049792,-460.0,0.0002,2]
[370407556,1752003049801,-460.0,0.0002,2]
[370407557,1752003049810,-460.0,0.0002,2]
[370407558,1752003049819,-460.0,0.0002,2]
[370407559,1752003049829,-460.0,0.0002,2]
[370407560,1752003049838,-460.0,0.0002,2]
[370407561,1752003049847,-460.0,0.0002,2]
[370407562,1752003049857,-460.0,0.0002,2]
[370407563,1752003049866,-460.0,0.0002,2]
[370407564,1752003049875,-460.0,0.0002,2]
[370407565,1752003049885,-460.0,0.0002,2]
[370407566,1752003049894,-703.02,0.0002,2]
[370407567,1752003049904,-1056.15,0.0002,2]
[370407568,1752003049913,-831.68,0.0002,2]
[370407569,1752003050072,-460.0,0.0002,2]
[370407570,1752003050154,-460.0,0.0002,2]
[370407571,1752003050168,-460.0,0.0002,2]
[370407572,1752003050177,-460.0,0.0002,2]
[370407573,1752003050187,-812.31,0.0002,2]
[370407574,1752003050196,-460.0,0.0002,2]
[370407575,1752003050206,-460.0,0.0002,2]
[370407576,1752003050217,-460.0,0.0002,2]
[370407577,1752003050231,-537.37505171,0.0002,2]
[370407578,1752003050241,-460.0,0.0002,2]
[370407579,1752003050251,-460.0,0.0002,2]
[370407580,1752003050261,-460.0,0.0002,2]
[370407581,1752003050271,-460.0,0.0002,2]
[370407582,1752003050281,-460.0,0.0002,2]
[370407583,1752003050291,-599.22,0.0002,2]
[370407584,1752003050302,-460.0,0.0002,2]
[370407585,1752003050313,-460.0,0.0002,2]
[370407586,1752003050322,-460.0,0.0002,2]
[370407587,1752003050332,-460.0,0.0002,2]
[370407588,1752003050341,-460.0,0.0002,2]
[370407589,1752003050350,-667.07,0.0002,2]
[370407590,1752003050360,-460.0,0.0002,2]
[370407591,1752003050369,-460.0,0.0002,2]
[370407592,1752003050379,-460.0,0.0002,2]
[370407593,1752003050388,-460.0,0.0002,2]
[370407594,1752003050398,-460.0,0.0002,2]
[370407595,1752003050407,-460.0,0.0002,2]
[370407596,1752003050417,-460.0,0.0002,2]
[370407597,1752003050427,-460.0,0.0002,2]
[370407598,1752003050436,-460.0,0.0002,2]
[370407599,1752003050445,-460.0,0.0002,2]
[370407600,1752003050455,-460.0,0.0002,2]
[370407601,1752003050465,-460.0,0.0002,2]
[370407602,1752003050475,-460.0,0.0002,2]
[370407603,1752003050484,-861.58,0.0002,2]
[370407604,1752003050496,-460.0,0.0002,2]
[370407605,1752003050505,-460.0,0.0002,2]
[370407606,1752003050514,-460.0,0.0002,2]
[370407607,1752003050523,-460.0,0.0002,2]
[370407608,1752003050533,-151.0,0.000201,4]
[370407609,1752003050542,-895.77629269,0.00020107,2]
[370407610,1752003050551,-205.77029909,0.00020117,2]
[370407611,1752003050561,-154.0,0.00020117,2]
[370407612,1752003050571,-154.0,0.00020117,2]
[370407613,1752003050581,-154.0,0.00020117,2]
[370407614,1752003050590,-318.0,0.00020117,2]
[370407615,1752003050600,-318.0,0.00020117,2]
[370407616,1752003050610,-318.0,0.00020117,2]
[370407617,1752003050619,-318.0,0.00020117,2]
[370407618,1752003050628,-318.0,0.00020117,2]
[370407619,1752003050638,-318.0,0.00020117,2]
[370407620,1752003050647,-318.0,0.00020117,2]
[370407621,1752003050656,-537.840633,0.00020187,2]
[370407622,1752003050665,-151.0,0.000202,3]
[370407623,1752003050675,-215.0738,0.00020236,2]
[370407624,1752003050684,-402.02,0.00020238,3]
[370407625,1752003050694,-161.015619,0.00020244,2]
[370407626,1752003050704,-1000.0,0.00020268,2]
[370407627,1752003050714,-574.31,0.00020273,2]
[370407628,1752003050723,-460.0,0.00020273,2]
[370407629,1752003050732,-460.0,0.00020273,2]
[370407630,1752003050741,-460.0,0.00020273,2]
[370407631,1752003050750,-460.0,0.00020273,2]
[370407632,1752003050759,-460.0,0.00020273,2]
[370407633,1752003050768,-460.0,0.00020273,2]
[370407634,1752003050778,-460.0,0.00020273,2]
[370407635,1752003050787,-460.0,0.00020273,2]
[370407636,1752003050796,-460.0,0.00020273,2]
[370407637,1752003050805,-460.0,0.00020273,2]
[370407638,1752003050814,-460.0,0.00020273,2]
[370407639,1752003050824,-460.0,0.00020273,2]
[370407640,1752003050834,-460.0,0.00020273,2]
[370407641,1752003050843,-460.0,0.00020273,2]
[370407642,1752003050852,-460.0,0.00020273,2]
[370407643,1752003050862,-364.79117049,0.00020273,2]
[370407644,1752003050872,-460.0,0.00020273,2]
[370407645,1752003050882,-460.0,0.00020273,2]
[370407646,1752003050893,-460.0,0.00020273,2]
[370407647,1752003050904,-460.0,0.00020273,2]
[370407648,1752003050913,-460.0,0.00020273,2]
[370407649,1752003050923,-460.0,0.00020273,2]
[370407650,1752003050932,-460.0,0.00020273,2]
[370407651,1752003050943,-460.0,0.00020273,2]
[370407652,1752003050954,-460.0,0.00020273,2]
[370407653,1752003050964,-460.0,0.00020273,2]
[370407654,1752003050973,-460.0,0.00020273,2]
[370407655,1752003050982,-949.86,0.00020273,2]
[370407656,1752003050991,-460.0,0.00020273,2]
[370407657,1752003051001,-460.0,0.00020273,2]
[370407658,1752003051011,-460.0,0.00020273,2]
[370407659,1752003051020,-460.0,0.00020273,2]
[370407660,1752003051031,-460.0,0.00020273,2]
[370407661,1752003051040,-1449.06,0.00020273,2]
[370407662,1752003051049,-154.2271676,0.00020273,2]
[370407663,1752003051060,-460.0,0.00020273,2]
[370407664,1752003051069,-460.0,0.00020273,2]
[370407665,1752003051080,-460.0,0.00020273,2]
[370407666,1752003051090,-460.0,0.00020273,2]
[370407667,1752003051099,-460.0,0.00020273,2]
[370407668,1752003051109,-460.0,0.00020273,2]
[370407669,1752003051120,-202.39477265,0.00020273,2]
[370407670,1752003051130,-460.0,0.00020273,2]
[370407671,1752003051143,-460.0,0.00020273,2]
[370407672,1752003051154,-460.0,0.00020273,2]
[370407673,1752003051165,-460.0,0.00020273,2]
[370407674,1752003051174,-460.0,0.00020273,2]
[370407675,1752003051187,-460.0,0.00020273,2]
[370407676,1752003051197,-703.02,0.00020273,2]
[370407677,1752003051209,-1056.15,0.00020273,2]
[370407678,1752003051220,-831.68,0.00020273,2]
[370407679,1752003051230,-460.0,0.00020273,2]
[370407680,1752003051240,-460.0,0.00020273,2]
[370407681,1752003051250,-460.0,0.00020273,2]
[370407682,1752003051260,-460.0,0.00020273,2]
[370407683,1752003051271,-812.31,0.00020273,2]
[370407684,1752003051283,-460.0,0.00020273,2]
[370407685,1752003051293,-460.0,0.00020273,2]
[370407686,1752003051304,-460.0,0.00020273,2]
[370407687,1752003051315,-460.0,0.00020273,2]
[370407688,1752003051326,-460.0,0.00020273,2]
[370407689,1752003051337,-460.0,0.00020273,2]
[370407690,1752003051346,-460.0,0.00020273,2]
[370407691,1752003051355,-460.0,0.00020273,2]
[370407692,1752003051365,-599.22,0.00020273,2]
[370407693,1752003051374,-460.0,0.00020273,2]
[370407694,1752003051383,-460.0,0.00020273,2]
[370407695,1752003051392,-460.0,0.00020273,2]
[370407696,1752003051402,-426.51364929,0.00020273,2]
[370407697,1752003051411,-667.07,0.00020273,2]
[370407698,1752003051422,-460.0,0.00020273,2]
[370407699,1752003051432,-273.31513331,0.00020273,2]
[370407700,1752003051442,-460.0,0.00020273,2]
[370407701,1752003051451,-460.0,0.00020273,2]
[370407702,1752003051461,-460.0,0.00020273,2]
[370407703,1752003051471,-460.0,0.00020273,2]
[370407704,1752003051480,-460.0,0.00020273,2]
[370407705,1752003051490,-460.0,0.00020273,2]
[370407706,1752003051500,-460.0,0.00020273,2]
[370407707,1752003051510,-460.0,0.00020273,2]
[370407708,1752003051519,-861.58,0.00020273,2]
[370407709,1752003051530,-460.0,0.00020273,2]
[370407710,1752003051539,-460.0,0.00020273,2]
[370407711,1752003051548,-460.0,0.00020273,2]
[370407712,1752003051558,-460.0,0.00020273,2]
[370407713,1752003051567,-500.0,0.0002032,2]
[370407714,1752003051577,-500.0,0.0002032,2]
[370407715,1752003051587,-500.0,0.0002032,2]
[370407716,1752003051597,-500.98628859,0.0002032,2]
[370407717,1752003051606,-25846.92323443,0.00020342,2]
[370407718,1752003051615,-895.77629269,0.00020348,3]
[370407719,1752003051625,-318.0,0.00020367,2]
[370407720,1752003051634,-318.0,0.00020367,2]
[370407721,1752003051644,-318.0,0.00020367,2]
[370407722,1752003051655,-318.0,0.00020367,2]
[370407723,1752003051664,-318.0,0.00020367,2]
[370407724,1752003051673,-318.0,0.00020367,2]
[370407725,1752003051682,-318.0,0.00020367,2]
[370407726,1752003051691,-318.0,0.00020367,2]
[370407727,1752003051700,-318.0,0.00020367,2]
[370407728,1752003051709,-318.0,0.00020367,2]
[370407729,1752003051718,-318.0,0.00020367,2]
[370407730,1752003051728,-318.0,0.00020367,2]
[370407731,1752003051738,-318.0,0.00020367,2]
[370407732,1752003051747,-318.0,0.00020367,2]
[370407733,1752003051757,-318.0,0.00020367,2]
[370407734,1752003051767,-318.0,0.00020367,2]
[370407735,1752003051776,-318.0,0.00020367,2]
[370407736,1752003051785,-318.0,0.00020367,2]
[370407737,1752003051795,-318.0,0.00020367,2]
[370407738,1752003051805,-318.0,0.00020367,2]
[370407739,1752003051815,-235.92771903,0.00020367,2]
[370407740,1752003051825,-318.0,0.00020367,2]
[370407741,1752003051835,-151.0,0.000204,4]
[370407742,1752003051844,-574.31,0.00020547,2]
[370407743,1752003051854,-460.0,0.00020547,2]
[370407744,1752003051863,-460.0,0.00020547,2]
[370407745,1752003051872,-460.0,0.00020547,2]
[370407746,1752003051882,-460.0,0.00020547,2]
[370407747,1752003051892,-460.0,0.00020547,2]
[370407748,1752003051903,-460.0,0.00020547,2]
[370407749,1752003051913,-460.0,0.00020547,2]
[370407750,1752003051923,-343.88428137,0.00020547,2]
[370407751,1752003051933,-460.0,0.00020547,2]
[370407752,1752003051943,-460.0,0.00020547,2]
[370407753,1752003051954,-460.0,0.00020547,2]
[370407754,1752003051964,-460.0,0.00020547,2]
[370407755,1752003051974,-460.0,0.00020547,2]
[370407756,1752003051983,-460.0,0.00020547,2]
[370407757,1752003051993,-460.0,0.00020547,2]
[370407758,1752003052002,-460.0,0.00020547,2]
[370407759,1752003052011,-460.0,0.00020547,2]
[370407760,1752003052020,-460.0,0.00020547,2]
[370407761,1752003052029,-460.0,0.00020547,2]
[370407762,1752003052039,-460.0,0.00020547,2]
[370407763,1752003052048,-460.0,0.00020547,2]
[370407764,1752003052057,-460.0,0.00020547,2]
[370407765,1752003052067,-949.86,0.00020547,2]
[370407766,1752003052076,-518.66,0.00020547,2]
[370407767,1752003052085,-460.0,0.00020547,2]
[370407768,1752003052094,-460.0,0.00020547,2]
[370407769,1752003052103,-460.0,0.00020547,2]
[370407770,1752003052112,-1449.06,0.00020547,2]
[370407771,1752003052122,-460.0,0.00020547,2]
[370407772,1752003052131,-460.0,0.00020547,2]
[370407773,1752003052140,-460.0,0.00020547,2]
[370407774,1752003052153,-460.0,0.00020547,2]
[370407775,1752003052162,-460.0,0.00020547,2]
[370407776,1752003052172,-460.0,0.00020547,2]
[370407777,1752003052181,-460.0,0.00020547,2]
[370407778,1752003052191,-460.0,0.00020547,2]
[370407779,1752003052200,-460.0,0.00020547,2]
[370407780,1752003052210,-460.0,0.00020547,2]
[370407781,1752003052219,-460.0,0.00020547,2]
[370407782,1752003052229,-703.02,0.00020547,2]
[370407783,1752003052239,-1056.15,0.00020547,2]
[370407784,1752003052248,-831.68,0.00020547,2]
[370407785,1752003052257,-460.0,0.00020547,2]
[370407786,1752003052267,-460.0,0.00020547,2]
[370407787,1752003052276,-460.0,0.00020547,2]
[370407788,1752003052285,-460.0,0.00020547,2]
[370407789,1752003052295,-812.31,0.00020547,2]
[370407790,1752003052304,-460.0,0.00020547,2]
[370407791,1752003052313,-460.0,0.00020547,2]
[370407792,1752003052322,-460.0,0.00020547,2]
[370407793,1752003052332,-460.0,0.00020547,2]
[370407794,1752003052341,-460.0,0.00020547,2]
[370407795,1752003052350,-460.0,0.00020547,2]
[370407796,1752003052359,-460.0,0.00020547,2]
[370407797,1752003052368,-599.22,0.00020547,2]
[370407798,1752003052378,-577.38,0.00020547,2]
[370407799,1752003052387,-460.0,0.00020547,2]
[370407800,1752003052396,-460.0,0.00020547,2]
[370407801,1752003052406,-667.07,0.00020547,2]
[370407802,1752003052415,-460.0,0.00020547,2]
[370407803,1752003052425,-460.0,0.00020547,2]
[370407804,1752003052435,-460.0,0.00020547,2]
[370407805,1752003052444,-460.0,0.00020547,2]
[370407806,1752003052453,-246.68134019,0.00020547,2]
[370407807,1752003052463,-460.0,0.00020547,2]
[370407808,1752003052472,-460.0,0.00020547,2]
[370407809,1752003052481,-190.95155439,0.00020547,2]
[370407810,1752003052491,-861.58,0.00020547,2]
[370407811,1752003052500,-460.0,0.00020547,2]
[370407812,1752003052510,-460.0,0.00020547,2]
[370407813,1752003052519,-460.0,0.00020547,2]
[370407814,1752003052528,-460.0,0.00020547,2]
[370407815,1752003052537,-420.0,0.00020566,2]
[370407816,1752003052547,-160.0,0.00020582,2]
[370407817,1752003052556,-230.51100374,0.00020582,2]
[370407818,1752003052565,-215.2437778,0.00020582,2]
[370407819,1752003052574,-837.89306043,0.00020582,2]
[370407820,1752003052584,-848.40570879,0.00020583,2]
[370407821,1752003052593,-895.77629269,0.0002059,3]
[370407822,1752003052603,-150.0,0.0002059,2]
[370407823,1752003052612,-415.0,0.00020595,2]
[370407824,1752003052621,-735.416,0.00020732,2]
[370407825,1752003052630,-574.31,0.00020821,2]
[370407826,1752003052640,-151.41404286,0.00020821,2]
[370407827,1752003052649,-460.0,0.00020821,2]
[370407828,1752003052658,-239.67,0.00020821,2]
[370407829,1752003052667,-460.0,0.00020821,2]
[370407830,1752003052676,-482.31,0.00020821,2]
[370407831,1752003052686,-460.0,0.00020821,2]
[370407832,1752003052694,-460.0,0.00020821,2]
[370407833,1752003052704,-487.04,0.00020821,2]
[370407834,1752003052713,-250.79,0.00020821,2]
[370407835,1752003052723,-460.0,0.00020821,2]
[370407836,1752003052732,-460.0,0.00020821,2]
[370407837,1752003052741,-949.86,0.00020821,2]
[370407838,1752003052752,-460.0,0.00020821,2]
[370407839,1752003052761,-460.0,0.00020821,2]
[370407840,1752003052769,-1449.06,0.00020821,2]
[370407841,1752003052779,-502.93,0.00020821,2]
[370407842,1752003052788,-460.0,0.00020821,2]
[370407843,1752003052797,-460.0,0.00020821,2]
[370407844,1752003052807,-460.0,0.00020821,2]
[370407845,1752003052816,-460.0,0.00020821,2]
[370407846,1752003052825,-460.0,0.00020821,2]
[370407847,1752003052834,-460.0,0.00020821,2]
[370407848,1752003052844,-460.0,0.00020821,2]
[370407849,1752003052853,-460.0,0.00020821,2]
[370407850,1752003052862,-460.0,0.00020821,2]
[370407851,1752003052871,-460.0,0.00020821,2]
[370407852,1752003052880,-703.02,0.00020821,2]
[370407853,1752003052889,-1056.15,0.00020821,2]
[370407854,1752003052899,-831.68,0.00020821,2]
[370407855,1752003053116,-460.0,0.00020821,2]
[370407856,1752003053126,-460.0,0.00020821,2]
[370407857,1752003053135,-460.0,0.00020821,2]
[370407858,1752003053147,-812.31,0.00020821,2]
[370407859,1752003053157,-569.29,0.00020821,2]
[370407860,1752003053167,-460.0,0.00020821,2]
[370407861,1752003053177,-460.0,0.00020821,2]
[370407862,1752003053187,-460.0,0.00020821,2]
[370407863,1752003053196,-460.0,0.00020821,2]
[370407864,1752003053206,-460.0,0.00020821,2]
[370407865,1752003053216,-599.22,0.00020821,2]
[370407866,1752003053227,-460.0,0.00020821,2]
[370407867,1752003053237,-460.0,0.00020821,2]
[370407868,1752003053247,-667.07,0.00020821,2]
[370407869,1752003053256,-460.0,0.00020821,2]
[370407870,1752003053266,-460.0,0.00020821,2]
[370407871,1752003053275,-460.0,0.00020821,2]
[370407872,1752003053284,-460.0,0.00020821,2]
[370407873,1752003053294,-460.0,0.00020821,2]
[370407874,1752003053304,-861.58,0.00020821,2]
[370407875,1752003053315,-460.0,0.00020821,2]
[370407876,1752003053325,-460.0,0.00020821,2]
[370407877,1752003053335,-460.0,0.00020821,2]
[370407878,1752003053345,-460.0,0.00020821,2]
[370407879,1752003053356,-895.77629269,0.00020831,4]
[370407880,1752003053366,-161.015619,0.0002084,2]
[370407881,1752003053375,-150.0,0.00021,2]
[370407882,1752003053386,-895.77629269,0.00021072,4]
[370407883,1752003053396,-574.31,0.00021095,2]
[370407884,1752003053405,-440.64,0.00021095,2]
[370407885,1752003053415,-460.0,0.00021095,2]
[370407886,1752003053424,-460.0,0.00021095,2]
[370407887,1752003053434,-949.86,0.00021095,2]
[370407888,1752003053443,-460.0,0.00021095,2]
[370407889,1752003053453,-460.0,0.00021095,2]
[370407890,1752003053463,-1449.06,0.00021095,2]
[370407891,1752003053473,-460.0,0.00021095,2]
[370407892,1752003053483,-460.0,0.00021095,2]
[370407893,1752003053492,-460.0,0.00021095,2]
[370407894,1752003053502,-460.0,0.00021095,2]
[370407895,1752003053512,-460.0,0.00021095,2]
[370407896,1752003053658,-460.0,0.00021095,2]
[370407897,1752003053668,-460.0,0.00021095,2]
[370407898,1752003053678,-460.0,0.00021095,2]
[370407899,1752003053688,-460.0,0.00021095,2]
[370407900,1752003053697,-460.0,0.00021095,2]
[370407901,1752003053706,-703.02,0.00021095,2]
[370407902,1752003053716,-1056.15,0.00021095,2]
[370407903,1752003053725,-831.68,0.00021095,2]
[370407904,1752003053735,-215.23,0.00021095,2]
[370407905,1752003053745,-812.31,0.00021095,2]
[370407906,1752003053754,-460.0,0.00021095,2]
[370407907,1752003053763,-460.0,0.00021095,2]
[370407908,1752003053773,-460.0,0.00021095,2]
[370407909,1752003053782,-460.0,0.00021095,2]
[370407910,1752003053791,-460.0,0.00021095,2]
[370407911,1752003053801,-599.22,0.00021095,2]
[370407912,1752003053811,-460.0,0.00021095,2]
[370407913,1752003053820,-460.0,0.00021095,2]
[370407914,1752003053829,-667.07,0.00021095,2]
[370407915,1752003053838,-460.0,0.00021095,2]
[370407916,1752003053847,-460.0,0.00021095,2]
[370407917,1752003053859,-460.0,0.00021095,2]
[370407918,1752003053869,-460.0,0.00021095,2]
[370407919,1752003053878,-199.27,0.00021095,2]
[370407920,1752003053888,-861.58,0.00021095,2]
[370407921,1752003053898,-460.0,0.00021095,2]
[370407922,1752003053907,-460.0,0.00021095,2]
[370407923,1752003053916,-895.77629269,0.00021314,5]
[370407924,1752003053926,-574.31,0.00021369,2]
[370407925,1752003053935,-460.0,0.00021369,2]
[370407926,1752003053944,-460.0,0.00021369,2]
[370407927,1752003053953,-949.86,0.00021369,2]
[370407928,1752003053963,-460.0,0.00021369,2]
[370407929,1752003053973,-1449.06,0.00021369,2]
[370407930,1752003053983,-460.0,0.00021369,2]
[370407931,1752003053993,-460.0,0.00021369,2]
[370407932,1752003054002,-460.0,0.00021369,2]
[370407933,1752003054012,-460.0,0.00021369,2]
[370407934,1752003054021,-460.0,0.00021369,2]
[370407935,1752003054030,-460.0,0.00021369,2]
[370407936,1752003054040,-593.0,0.00021369,2]
[370407937,1752003054050,-460.0,0.00021369,2]
[370407938,1752003054059,-703.02,0.00021369,2]
[370407939,1752003054069,-1056.15,0.00021369,2]
[370407940,1752003054078,-831.68,0.00021369,2]
[370407941,1752003054088,-812.31,0.00021369,2]
[370407942,1752003054097,-460.0,0.00021369,2]
[370407943,1752003054107,-154.75978889,0.00021369,2]
[370407944,1752003054117,-460.0,0.00021369,2]
[370407945,1752003054126,-460.0,0.00021369,2]
[370407946,1752003054137,-460.0,0.00021369,2]
[370407947,1752003054150,-599.22,0.00021369,2]
[370407948,1752003054160,-460.0,0.00021369,2]
[370407949,1752003054169,-460.0,0.00021369,2]
[370407950,1752003054178,-667.07,0.00021369,2]
[370407951,1752003054189,-460.0,0.00021369,2]
[370407952,1752003054198,-460.0,0.00021369,2]
[370407953,1752003054208,-861.58,0.00021369,2]
[370407954,1752003054219,-460.0,0.00021369,2]
[370407955,1752003054229,-161.015619,0.00021435,2]
[370407956,1752003054239,-500.0,0.00021457,2]
[370407957,1752003054248,-895.77629269,0.00021555,5]
[370407958,1752003054258,-223.0315306,0.00021605,2]
[370407959,1752003054267,-574.31,0.00021643,2]
[370407960,1752003054277,-460.0,0.00021643,2]
[370407961,1752003054286,-402.48,0.00021643,2]
[370407962,1752003054296,-949.86,0.00021643,2]
[370407963,1752003054305,-460.0,0.00021643,2]
[370407964,1752003054315,-1449.06,0.00021643,2]
[370407965,1752003054325,-460.0,0.00021643,2]
[370407966,1752003054335,-460.0,0.00021643,2]
[370407967,1752003054346,-202.41090414,0.00021643,2]
[370407968,1752003054357,-460.0,0.00021643,2]
[370407969,1752003054367,-460.0,0.00021643,2]
[370407970,1752003054376,-703.02,0.00021643,2]
[370407971,1752003054385,-1056.15,0.00021643,2]
[370407972,1752003054395,-831.68,0.00021643,2]
[370407973,1752003054406,-812.31,0.00021643,2]
[370407974,1752003054417,-460.0,0.00021643,2]
[370407975,1752003054427,-460.0,0.00021643,2]
[370407976,1752003054437,-460.0,0.00021643,2]
[370407977,1752003054447,-599.22,0.00021643,2]
[370407978,1752003054457,-563.88,0.00021643,2]
[370407979,1752003054467,-183.63,0.00021643,2]
[370407980,1752003054478,-667.07,0.00021643,2]
[370407981,1752003054488,-460.0,0.00021643,2]
[370407982,1752003054497,-861.58,0.00021643,2]
[370407983,1752003054508,-524.75,0.00021643,2]
[370407984,1752003054518,-407.0,0.00021722,2]
[370407985,1752003054528,-895.77629269,0.00021797,6]
[370407986,1752003054539,-500.0,0.00021917,2]
[370407987,1752003054549,-574.31,0.00021917,2]
[370407988,1752003054558,-460.0,0.00021917,2]
[370407989,1752003054569,-949.86,0.00021917,2]
[370407990,1752003054579,-460.0,0.00021917,2]